[Event "Turkish Youth Championship 2024"]
[Site "Samsun"]
[Date "2024.05.19"]
[Round "3"]
[White "Cagatay, Mehmet Kayra"]
[Black "Cicek, Bilal Emre"]
[Result "0-1"]
[ECO "B33"]
[WhiteElo "1717"]
[BlackElo "1873"]
[Annotator "NA"]
[PlyCount "86"]
[EventDate "2024.05.18"]
[EventType "swiss"]
[EventCountry "TUR"]
[SourceTitle "playchess.com"]
[Source "ChessBase"]
[SourceQuality "1"]
[TimeControl "5400+30"]

1. e4 {[%emt 0:01:00]} c5 {[%emt 0:01:00]} 2. Nf3 {[%emt 0:00:30]} e6 {[%emt 0:00:00]} 3. d4 {[%emt 0:00:00]} cxd4 {[%emt 0:00:00]} 4. Nxd4 {[%emt 0:00:00]} Nf6 {[%emt 0:00:00]} 5. Nc3 {[%emt 0:00:00]} Nc6 {[%emt 0:00:00]} 6. Ndb5 {[%emt 0:00:00]} d6 {[%emt 0:00:00]} 7. Bf4 {[%emt 0:00:30]} e5 {[%emt 0:00:00]} 8. Bg5 {[%emt 0:00:30]} a6 {[%emt 0:00:30]} 9. Na3 {[%emt 0:00:00]} b5 {[%emt 0:00:00]} 10. Nd5 {[%emt 0:05:00]} Be7 {[%emt 0:00:00]} 11. Bxf6 {[%emt 0:01:30]} Bxf6 {[%emt 0:00:30]} 12. c3 {[%emt 0:01:30]} O-O {[%emt 0:00:30]} 13. Be2 {[%emt 0:00:00]} Bg5 {[%emt 0:00:00]} 14. O-O {[%emt 0:01:00]} Ne7 {[%emt 0:02:00]} 15. Bf3 {[%emt 0:06:30]} Bb7 {[%emt 0:01:30]} 16. Nxe7+ {[%emt 0:01:30]} Qxe7 {[%emt 0:00:00]} 17. Nc2 {[%emt 0:00:00]} a5 {[%emt 0:03:00]} 18. Qe2 {[%emt 0:01:00]} Bc6 {[%emt 0:06:30]} 19. Ne3 {[%emt 0:02:30]} Qb7 {[%emt 0:00:30]} 20. Nf5 {[%emt 0:01:30]} g6 {[%emt 0:02:30]} 21. Nxd6 {[%emt 0:01:30]} Qb8 {[%emt 0:00:30]} 22. Rad1 {[%emt 0:07:30]} Be7 {[%emt 0:00:30]} 23. c4 {[%emt 0:00:30]} Bxd6 {[%emt 0:01:30]} 24. c5 {[%emt 0:00:30]} Be7 {[%emt 0:00:30]} 25. Qe3 {[%emt 0:01:30]} Qc7 {[%emt 0:00:30]} 26. Qh6 {[%emt 0:01:30]} Bxc5 {[%emt 0:01:30]} 27. h4 {[%emt 0:00:30]} Rfd8 {[%emt 0:00:00]} 28. Rc1 {[%emt 0:00:30]} Bb4 {[%emt 0:01:00]} 29. Rc2 {[%emt 0:00:30]} Qb7 {[%emt 0:00:30]} 30. Re2 {[%emt 0:00:00]} Bf8 {[%emt 0:00:30]} 31. Qg5 {[%emt 0:00:00]} Qe7 {[%emt 0:00:30]} 32. Qg3 {[%emt 0:00:30]} Bh6 {[%emt 0:00:30]} 33. Bg4 {[%emt 0:01:30]} b4 {[%emt 0:00:00]} 34. Rb1 {[%emt 0:00:30]} Bb5 {[%emt 0:00:00]} 35. Ree1 {[%emt 0:01:30]} Rd3 {[%emt 0:00:30]} 36. f3 {[%emt 0:00:30]} Qc5+ {[%emt 0:00:00]} 37. Kh1 {[%emt 0:00:30]} Bf4 {[%emt 0:00:00]} 38. Qh3 {[%emt 0:00:00]} Rad8 {[%emt 0:00:30]} 39. h5 {[%emt 0:00:00]} Qc2 {[%emt 0:00:30]} 40. hxg6 {[%emt 0:00:30]} hxg6 {[%emt 0:00:00]} 41. g3 {[%emt 0:03:30]} Rd1 {[%emt 0:03:00]} 42. Qh4 {[%emt 0:02:30]} g5 {[%emt 0:01:30]} 43. Qh2 {[%emt 0:00:30]} Qxb1 {[%emt 0:00:30]} 0-1

[Event "Turkish Youth Championship 2024"]
[Site "Samsun"]
[Date "2024.05.19"]
[Round "3"]
[White "Yogurtcuoglu, Cagan"]
[Black "Danaci, Ege"]
[Result "1/2-1/2"]
[ECO "E91"]
[WhiteElo "1714"]
[BlackElo "2031"]
[Annotator "RC"]
[PlyCount "146"]
[EventDate "2024.05.18"]
[EventType "swiss"]
[EventCountry "TUR"]
[SourceTitle "playchess.com"]
[Source "ChessBase"]
[SourceQuality "1"]
[TimeControl "5400+30"]

1. d4 {[%emt 0:01:00]} Nf6 {[%emt 0:01:00]} 2. c4 {[%emt 0:00:00]} g6 {[%emt 0:00:30]} 3. Nc3 {[%emt 0:00:00]} Bg7 {[%emt 0:00:30]} 4. e4 {[%emt 0:00:30]} d6 {[%emt 0:00:00]} 5. Be2 {[%emt 0:00:30]} O-O {[%emt 0:00:00]} 6. Nf3 {[%emt 0:00:30]} c5 {[%emt 0:03:30]} 7. d5 {[%emt 0:02:30]} e6 {[%emt 0:00:30]} 8. O-O {[%emt 0:00:30]} exd5 {[%emt 0:00:00]} 9. exd5 {[%emt 0:00:30]} Na6 {[%emt 0:08:00]} 10. h3 {[%emt 0:14:30]} Re8 {[%emt 0:08:30]} 11. Bg5 {[%emt 0:04:30]} h6 {[%emt 0:04:30]} 12. Be3 {[%emt 0:00:30]} Qe7 {[%emt 0:04:30]} 13. Re1 {[%emt 0:00:30]} Nc7 {[%emt 0:02:30]} 14. Qd2 {[%emt 0:01:30]} Qf8 {[%emt 0:00:30]} 15. Bf4 {[%emt 0:20:30]} Bd7 {[%emt 0:07:30]} 16. Rab1 {[%emt 0:06:30]} Rab8 {[%emt 0:03:30]} 17. Bd3 {[%emt 0:08:30]} b5 {[%emt 0:04:30]} 18. Rxe8 {[%emt 0:00:30]} Rxe8 {[%emt 0:03:30]} 19. b3 {[%emt 0:07:30]} b4 {[%emt 0:01:30]} 20. Ne2 {[%emt 0:00:30]} Ne4 {[%emt 0:03:30]} 21. Bxe4 {[%emt 0:01:30]} Rxe4 {[%emt 0:00:30]} 22. Ng3 {[%emt 0:00:30]} Re8 {[%emt 0:00:30]} 23. h4 {[%emt 0:00:30]} a5 {[%emt 0:12:30]} 24. Re1 {[%emt 0:02:30]} f5 {[%emt 0:00:30]} 25. Rxe8 {[%emt 0:01:30]} Nxe8 {[%emt 0:00:00]} 26. Ne2 {[%emt 0:03:30]} Nf6 {[%emt 0:01:00]} 27. Bg3 {[%emt 0:03:28]} Ne4 {[%emt 0:00:30]} 28. Qe3 {[%emt 0:03:49]} Qf6 {[%emt 0:01:30]} 29. Nd2 {[%emt 0:05:55]} Qa1+ {[%emt 0:04:30]} 30. Kh2 {[%emt 0:00:38]} Nxg3 {[%emt 0:01:30]} 31. fxg3 {[%emt 0:00:36]} Qe5 {[%emt 0:08:25]} 32. Qd3 {[%emt 0:03:17]} g5 {[%emt 0:00:05]} 33. hxg5 {[%emt 0:04:32]} hxg5 {[%emt 0:00:30]} 34. Nf3 {[%emt 0:00:30]} Qe7 {[%emt 0:00:02]} 35. Kg1 {[%emt 0:02:36]} Be8 {[%emt 0:00:04]} 36. Kf2 {[%emt 0:00:24]} Bg6 {[%emt 0:00:04]} 37. Qe3 {[%emt 0:00:25]} Bf6 {[%emt 0:02:19]} 38. Qxe7 {[%emt 0:00:33]} Bxe7 {[%emt 0:00:03]} 39. Ke3 {[%emt 0:01:02]} Kg7 {[%emt 0:00:30]} 40. Ne1 {[%emt 0:00:36]} f4+ {[%emt 0:02:30]} 41. gxf4 {[%emt 0:00:21]} Bb1 {[%emt 0:00:41]} 42. Nc1 {[%emt 0:00:26]} gxf4+ {[%emt 0:00:25]} 43. Kxf4 {[%emt 0:00:11]} Kg6 {[%emt 0:00:10]} 44. Ned3 {[%emt 0:00:11]} Bg5+ {[%emt 0:00:48]} 45. Kf3 {[%emt 0:00:27]} Bd2 {[%emt 0:01:56]} 46. Kg4 {[%emt 0:00:47]} Kf6 {[%emt 0:00:19]} 47. Kf3 {[%emt 0:00:39]} Kf5 {[%emt 0:00:17]} 48. Ke2 {[%emt 0:00:51]} Bg5 {[%emt 0:02:05]} 49. Kf3 {[%emt 0:00:08]} Bc2 {[%emt 0:00:19]} 50. g4+ {[%emt 0:00:53]} Kg6 {[%emt 0:00:50]} 51. Nf4+ {[%emt 0:00:37]} Kf6 {[%emt 0:00:10]} 52. Nfd3 {[%emt 0:00:10]} Bd1+ {[%emt 0:00:44]} 53. Kg3 {[%emt 0:00:23]} Be3 {[%emt 0:00:22]} 54. Nf2 {[%emt 0:00:59]} Bc2 {[%emt 0:01:10]} 55. Nfd3 {[%emt 0:00:10]} Kg5 {[%emt 0:00:38]} 56. Kf3 {[%emt 0:00:42]} Bd2 {[%emt 0:00:50]} 57. Ke2 {[%emt 0:00:34]} Bxc1 {[%emt 0:02:10]} 58. Nxc1 {[%emt 0:00:07]} Kxg4 {[%emt 0:00:00]} 59. Kd2 {[%emt 0:00:42]} Bb1 {[%emt 0:00:00]} 60. Ke2 {[%emt 0:00:41]} Kf4 {[%emt 0:00:21]} 61. Kf2 {[%emt 0:00:21]} Ke4 {[%emt 0:06:49]} 62. Ke2 {[%emt 0:00:08]} Kd4 {[%emt 0:00:01]} 63. Kd2 {[%emt 0:00:10]} a4 {[%emt 0:02:41]} 64. Ne2+ {[%emt 0:01:20]} Ke4 {[%emt 0:00:04]} 65. bxa4 {[%emt 0:00:54]} Bxa2 {[%emt 0:00:03]} 66. Nc3+ {[%emt 0:00:00]} Kd4 {[%emt 0:01:09]} 67. Nxa2 {[%emt 0:00:13]} Kxc4 {[%emt 0:00:02]} 68. Nc1 {[%emt 0:00:21]} Kxd5 {[%emt 0:00:19]} 69. Nb3 {[%emt 0:00:50]} c4 {[%emt 0:00:25]} 70. Kc2 {[%emt 0:00:10]} Kc6 {[%emt 0:01:30]} 71. Nd4+ {[%emt 0:00:45]} Kb6 {[%emt 0:00:02]} 72. Nf5 {[%emt 0:00:09]} d5 {[%emt 0:00:27]} 73. Ne3 {[%emt 0:00:06]} Ka5 {[%emt 0:01:54]} 1/2-1/2

[Event "Turkish Youth Championship 2024"]
[Site "Samsun"]
[Date "2024.05.19"]
[Round "3"]
[White "Tonoglu, Engin Erdem"]
[Black "Ekinci, Berkay"]
[Result "0-1"]
[ECO "E38"]
[WhiteElo "1691"]
[BlackElo "1891"]
[Annotator "NA"]
[PlyCount "70"]
[EventDate "2024.05.18"]
[EventType "swiss"]
[EventCountry "TUR"]
[SourceTitle "playchess.com"]
[Source "ChessBase"]
[SourceQuality "1"]
[TimeControl "5400+30"]

1. d4 {[%emt 0:01:00]} Nf6 {[%emt 0:13:00]} 2. Nf3 {[%emt 0:00:30]} e6 {[%emt 0:00:30]} 3. c4 {[%emt 0:00:00]} b6 {[%emt 0:01:30]} 4. Nc3 {[%emt 0:00:00]} Bb4 {[%emt 0:00:30]} 5. Qc2 {[%emt 0:00:30]} Bb7 {[%emt 0:00:30]} 6. e3 {[%emt 0:00:30]} O-O {[%emt 0:00:30]} 7. Be2 {[%emt 0:00:30]} c5 {[%emt 0:00:30]} 8. O-O {[%emt 0:01:30]} cxd4 {[%emt 0:03:30]} 9. Nxd4 {[%emt 0:00:30]} Nc6 {[%emt 0:00:30]} 10. Rd1 {[%emt 0:06:30]} Nxd4 {[%emt 0:06:30]} 11. exd4 {[%emt 0:04:30]} Bxc3 {[%emt 0:02:30]} 12. Qxc3 {[%emt 0:01:30]} Rc8 {[%emt 0:04:30]} 13. Bf4 {[%emt 0:07:30]} d5 {[%emt 0:01:30]} 14. Qb3 {[%emt 0:01:30]} dxc4 {[%emt 0:13:30]} 15. Bxc4 {[%emt 0:00:30]} Bd5 {[%emt 0:02:30]} 16. Rac1 {[%emt 0:03:30]} Qd7 {[%emt 0:09:30]} 17. Be5 {[%emt 0:06:30]} Bxc4 {[%emt 0:08:30]} 18. Rxc4 {[%emt 0:00:00]} Rxc4 {[%emt 0:00:30]} 19. Qxc4 {[%emt 0:00:00]} Rc8 {[%emt 0:00:00]} 20. Qd3 {[%emt 0:01:30]} Nd5 {[%emt 0:00:00]} 21. a3 {[%emt 0:02:30]} Qa4 {[%emt 0:01:30]} 22. h3 {[%emt 0:02:30]} Qc2 {[%emt 0:05:30]} 23. Rd2 {[%emt 0:01:30]} Qxd3 {[%emt 0:01:30]} 24. Rxd3 {[%emt 0:00:30]} Rc1+ {[%emt 0:00:30]} 25. Kh2 {[%emt 0:00:30]} Rc2 {[%emt 0:00:30]} 26. Bb8 {[%emt 0:06:30]} a6 {[%emt 0:01:30]} 27. Rb3 {[%emt 0:01:30]} Rxf2 {[%emt 0:01:30]} 28. Ba7 {[%emt 0:01:30]} b5 {[%emt 0:00:30]} 29. a4 {[%emt 0:00:30]} b4 {[%emt 0:00:30]} 30. a5 {[%emt 0:00:00]} Rc2 {[%emt 0:02:58]} 31. Bc5 {[%emt 0:00:00]} Rc4 {[%emt 0:00:49]} 32. Kg3 {[%emt 0:00:30]} e5 {[%emt 0:03:34]} 33. Kf3 {[%emt 0:02:30]} f5 {[%emt 0:00:48]} 34. Ke2 {[%emt 0:05:30]} e4 {[%emt 0:00:26]} 35. Kd2 {[%emt 0:01:30]} f4 {[%emt 0:00:49]} 0-1

[Event "Turkish Youth Championship 2024"]
[Site "Samsun"]
[Date "2024.05.19"]
[Round "3"]
[White "Demirkan, Mustafa"]
[Black "Ilgaz, Yusuf Kerem"]
[Result "0-1"]
[ECO "C78"]
[WhiteElo "1678"]
[BlackElo "1964"]
[Annotator "NA RC"]
[PlyCount "174"]
[EventDate "2024.05.18"]
[EventType "swiss"]
[EventCountry "TUR"]
[SourceTitle "playchess.com"]
[Source "ChessBase"]
[SourceQuality "1"]
[TimeControl "5400+30"]

1. e4 {[%emt 0:01:00]} e5 {[%emt 0:01:00]} 2. Nf3 {[%emt 0:00:00]} Nc6 {[%emt 0:00:30]} 3. Bb5 {[%emt 0:00:00]} a6 {[%emt 0:00:30]} 4. Ba4 {[%emt 0:00:30]} Nf6 {[%emt 0:00:00]} 5. O-O {[%emt 0:00:00]} b5 {[%emt 0:00:00]} 6. Bb3 {[%emt 0:00:00]} Bc5 {[%emt 0:00:00]} 7. Nxe5 {[%emt 0:03:30]} Nxe5 {[%emt 0:00:00]} 8. d4 {[%emt 0:00:30]} Bxd4 {[%emt 0:00:00]} 9. Qxd4 {[%emt 0:00:30]} d6 {[%emt 0:00:00]} 10. Qd1 {[%emt 0:02:30]} c5 {[%emt 0:12:30]} 11. c3 {[%emt 0:00:30]} Bb7 {[%emt 0:06:30]} 12. f3 {[%emt 0:01:30]} O-O {[%emt 0:01:30]} 13. Be3 {[%emt 0:01:30]} Re8 {[%emt 0:02:30]} 14. Bf2 {[%emt 0:04:30]} Rc8 {[%emt 0:10:30]} 15. Nd2 {[%emt 0:04:30]} Nd3 {[%emt 0:04:30]} 16. Bh4 {[%emt 0:00:30]} c4 {[%emt 0:04:30]} 17. Bc2 {[%emt 0:01:30]} Nxb2 {[%emt 0:04:30]} 18. Qb1 {[%emt 0:00:30]} Nd3 {[%emt 0:00:00]} 19. Bxd3 {[%emt 0:00:30]} cxd3 {[%emt 0:00:00]} 20. Qxd3 {[%emt 0:01:30]} Qb6+ {[%emt 0:05:30]} 21. Qd4 {[%emt 0:01:30]} Qxd4+ {[%emt 0:02:30]} 22. cxd4 {[%emt 0:00:00]} Nd7 {[%emt 0:00:00]} 23. Rfc1 {[%emt 0:01:00]} d5 {[%emt 0:01:00]} 24. e5 {[%emt 0:00:30]} Nf8 {[%emt 0:01:30]} 25. Nb3 {[%emt 0:03:30]} Ne6 {[%emt 0:00:30]} 26. Bg3 {[%emt 0:00:30]} Rc4 {[%emt 0:07:30]} 27. Na5 {[%emt 0:10:30]} Rxc1+ {[%emt 0:04:30]} 28. Rxc1 {[%emt 0:00:00]} Nxd4 {[%emt 0:00:30]} 29. Rc7 {[%emt 0:00:00]} Bc8 {[%emt 0:04:30]} 30. Nc6 {[%emt 0:01:30]} Nxc6 {[%emt 0:02:30]} 31. Rxc6 {[%emt 0:00:30]} h6 {[%emt 0:04:30]} 32. Rd6 {[%emt 0:00:30]} Be6 {[%emt 0:03:51]} 33. Rxa6 {[%emt 0:01:30]} Rc8 {[%emt 0:00:05]} 34. Ra5 {[%emt 0:02:30]} Rc1+ {[%emt 0:01:14]} 35. Kf2 {[%emt 0:00:30]} Rc2+ {[%emt 0:00:00]} 36. Ke3 {[%emt 0:00:30]} Rxg2 {[%emt 0:00:05]} 37. Rxb5 {[%emt 0:01:30]} Rxa2 {[%emt 0:00:09]} 38. f4 {[%emt 0:00:30]} Kh7 {[%emt 0:01:42]} 39. f5 {[%emt 0:00:30]} Bxf5 {[%emt 0:00:07]} 40. Rxd5 {[%emt 0:00:30]} Be6 {[%emt 0:00:20]} 41. Rd2 {[%emt 0:00:30]} Ra3+ {[%emt 0:00:06]} 42. Rd3 {[%emt 0:00:30]} Ra1 {[%emt 0:00:05]} 43. Rd4 {[%emt 0:03:30]} g5 {[%emt 0:01:33]} 44. h4 {[%emt 0:02:30]} g4 {[%emt 0:01:10]} 45. Rf4 {[%emt 0:03:30]} Ra3+ {[%emt 0:02:59]} 46. Kf2 {[%emt 0:00:30]} Ra2+ {[%emt 0:00:05]} 47. Kg1 {[%emt 0:00:30]} Kg6 {[%emt 0:07:03]} 48. Rf6+ {[%emt 0:00:00]} Kh5 {[%emt 0:00:53]} 49. Bf4 {[%emt 0:02:00]} g3 {[%emt 0:00:42]} 50. Bxg3 {[%emt 0:01:30]} Kg4 {[%emt 0:00:47]} 51. Be1 {[%emt 0:04:30]} Re2 {[%emt 0:05:04]} 52. Bf2 {[%emt 0:05:30]} h5 {[%emt 0:01:12]} 53. Rh6 {[%emt 0:03:30]} Rxe5 {[%emt 0:02:00]} 54. Rh7 {[%emt 0:00:30]} Rb5 {[%emt 0:00:32]} 55. Rg7+ {[%emt 0:00:00]} Kf4 {[%emt 0:00:30]} 56. Be1 {[%emt 0:01:00]} Rb1 {[%emt 0:00:29]} 57. Kf2 {[%emt 0:00:30]} Rb2+ {[%emt 0:00:21]} 58. Kg1 {[%emt 0:00:30]} Ra2 {[%emt 0:00:40]} 59. Rg2 {[%emt 0:03:30]} Ra1 {[%emt 0:00:14]} 60. Kf2 {[%emt 0:00:30]} Bg4 {[%emt 0:00:36]} 61. Bb4 {[%emt 0:00:30]} Rb1 {[%emt 0:01:09]} 62. Bd6+ {[%emt 0:00:30]} Ke4 {[%emt 0:00:08]} 63. Rg3 {[%emt 0:02:30]} Rb2+ {[%emt 0:00:01]} 64. Kg1 {[%emt 0:00:00]} Bf3 {[%emt 0:01:39]} 65. Rg7 {[%emt 0:00:00]} f5 {[%emt 0:00:41]} 66. Re7+ {[%emt 0:00:30]} Kd3 {[%emt 0:00:16]} 67. Bf4 {[%emt 0:00:00]} Be4 {[%emt 0:00:30]} 68. Rc7 {[%emt 0:01:00]} Ke2 {[%emt 0:00:29]} 69. Rc3 {[%emt 0:02:30]} Rb1+ {[%emt 0:00:24]} 70. Rc1 {[%emt 0:03:30]} Rb3 {[%emt 0:00:06]} 71. Kh2 {[%emt 0:00:30]} Kf3 {[%emt 0:00:32]} 72. Rf1+ {[%emt 0:00:30]} Kg4 {[%emt 0:00:07]} 73. Be5 {[%emt 0:00:30]} Rh3+ {[%emt 0:01:16]} 74. Kg1 {[%emt 0:00:00]} Kxh4 {[%emt 0:00:22]} 75. Bh2 {[%emt 0:00:00]} Rb3 {[%emt 0:00:28]} 76. Be5 {[%emt 0:01:30]} Ra3 {[%emt 0:00:46]} 77. Rf2 {[%emt 0:00:00]} Kg4 {[%emt 0:00:26]} 78. Rd2 {[%emt 0:01:00]} h4 {[%emt 0:00:28]} 79. Rd8 {[%emt 0:00:30]} Ra5 {[%emt 0:00:56]} 80. Bc3 {[%emt 0:01:30]} Ra2 {[%emt 0:00:22]} 81. Rd2 {[%emt 0:00:00]} Ra3 {[%emt 0:00:45]} 82. Be5 {[%emt 0:00:00]} Rb3 {[%emt 0:00:23]} 83. Rb2 {[%emt 0:00:30]} Ra3 84. Rd2 {[%emt 0:00:00]} h3 {[%emt 0:00:23]} 85. Rd8 {[%emt 0:00:00]} f4 {[%emt 0:00:53]} 86. Rg8+ {[%emt 0:00:30]} Kf5 {[%emt 0:00:28]} 87. Bd4 {[%emt 0:00:30]} Rg3+ {[%emt 0:00:30]} 0-1

[Event "Turkish Youth Championship 2024"]
[Site "Samsun"]
[Date "2024.05.19"]
[Round "3"]
[White "Incecinar, Abdullah Mete"]
[Black "Zeyrek, Ayaz"]
[Result "1/2-1/2"]
[ECO "B33"]
[WhiteElo "1643"]
[BlackElo "1750"]
[Annotator "NA"]
[PlyCount "65"]
[EventDate "2024.05.18"]
[EventType "swiss"]
[EventCountry "TUR"]
[SourceTitle "playchess.com"]
[Source "ChessBase"]
[SourceQuality "1"]
[TimeControl "5400+30"]

1. e4 {[%emt 0:01:00]} c5 {[%emt 0:01:00]} 2. Nf3 {[%emt 0:00:30]} Nc6 {[%emt 0:00:00]} 3. d4 {[%emt 0:00:00]} cxd4 {[%emt 0:00:00]} 4. Nxd4 {[%emt 0:00:00]} Nf6 {[%emt 0:00:30]} 5. Nc3 {[%emt 0:00:00]} e5 {[%emt 0:00:30]} 6. Ndb5 {[%emt 0:00:00]} d6 {[%emt 0:00:30]} 7. Bg5 {[%emt 0:00:30]} a6 {[%emt 0:00:30]} 8. Na3 {[%emt 0:00:00]} b5 {[%emt 0:00:00]} 9. Nd5 {[%emt 0:00:00]} Be7 {[%emt 0:00:00]} 10. Bxf6 {[%emt 0:00:00]} Bxf6 {[%emt 0:00:00]} 11. c4 {[%emt 0:00:00]} b4 {[%emt 0:00:00]} 12. Nc2 {[%emt 0:00:00]} a5 {[%emt 0:00:00]} 13. g3 {[%emt 0:00:00]} O-O {[%emt 0:00:00]} 14. h4 {[%emt 0:00:00]} g6 {[%emt 0:01:30]} 15. Bg2 {[%emt 0:06:00]} h5 {[%emt 0:01:30]} 16. O-O {[%emt 0:01:30]} Bg7 {[%emt 0:02:30]} 17. Qd3 {[%emt 0:02:30]} Be6 {[%emt 0:03:30]} 18. Rfd1 {[%emt 0:01:30]} Bxd5 {[%emt 0:03:30]} 19. cxd5 {[%emt 0:09:30]} Ne7 {[%emt 0:01:30]} 20. Ne3 {[%emt 0:01:30]} Kh7 {[%emt 0:02:30]} 21. Bh3 {[%emt 0:02:30]} Bh6 {[%emt 0:01:30]} 22. Rac1 {[%emt 0:07:30]} Bxe3 {[%emt 0:03:30]} 23. Qxe3 {[%emt 0:00:30]} f5 {[%emt 0:00:30]} 24. Rc4 {[%emt 0:01:30]} fxe4 {[%emt 0:04:30]} 25. Qxe4 {[%emt 0:01:30]} Qb6 {[%emt 0:02:30]} 26. Qe3 {[%emt 0:01:30]} Qxe3 {[%emt 0:00:30]} 27. fxe3 {[%emt 0:00:30]} Nf5 {[%emt 0:01:30]} 28. Bxf5 {[%emt 0:00:30]} Rxf5 {[%emt 0:00:00]} 29. Rf1 {[%emt 0:00:30]} Kg7 {[%emt 0:04:00]} 30. Rc6 {[%emt 0:01:30]} Rd8 {[%emt 0:01:30]} 31. e4 {[%emt 0:00:30]} Rxf1+ {[%emt 0:00:30]} 32. Kxf1 {[%emt 0:00:00]} Kf6 {[%emt 0:00:00]} 33. Kf2 {[%emt 0:00:00]} 1/2-1/2

[Event "Turkish Youth Championship 2024"]
[Site "Samsun"]
[Date "2024.05.19"]
[Round "3"]
[White "Yildirim, Orhun Ali"]
[Black "Kilic, Nurullah"]
[Result "1/2-1/2"]
[ECO "A47"]
[WhiteElo "1561"]
[BlackElo "1893"]
[Annotator "NA RC"]
[PlyCount "61"]
[EventDate "2024.05.18"]
[EventType "swiss"]
[EventCountry "TUR"]
[SourceTitle "playchess.com"]
[Source "ChessBase"]
[SourceQuality "1"]
[TimeControl "5400+30"]

1. d4 {[%emt 0:01:00]} Nf6 {[%emt 0:02:00]} 2. Bf4 {[%emt 0:00:00]} e6 {[%emt 0:01:30]} 3. Nf3 {[%emt 0:01:00]} b6 {[%emt 0:00:30]} 4. e3 {[%emt 0:00:30]} Bb7 {[%emt 0:00:30]} 5. Nbd2 {[%emt 0:00:30]} Be7 {[%emt 0:00:30]} 6. h3 {[%emt 0:00:30]} c5 {[%emt 0:03:30]} 7. c3 {[%emt 0:00:30]} O-O {[%emt 0:05:30]} 8. Bd3 {[%emt 0:01:30]} Nc6 {[%emt 0:00:30]} 9. Qe2 {[%emt 0:00:30]} a6 {[%emt 0:03:30]} 10. O-O {[%emt 0:02:30]} d6 {[%emt 0:09:30]} 11. a4 {[%emt 0:07:30]} Re8 {[%emt 0:10:30]} 12. Rfd1 {[%emt 0:05:30]} Bf8 {[%emt 0:04:30]} 13. Bg5 {[%emt 0:01:30]} h6 {[%emt 0:01:30]} 14. Bh4 {[%emt 0:01:30]} Be7 {[%emt 0:01:30]} 15. Bg3 {[%emt 0:09:30]} d5 {[%emt 0:11:30]} 16. Ne5 {[%emt 0:03:30]} Nxe5 {[%emt 0:04:30]} 17. Bxe5 {[%emt 0:00:30]} Nd7 {[%emt 0:01:30]} 18. Bh2 {[%emt 0:02:30]} Bf6 {[%emt 0:02:30]} 19. f4 {[%emt 0:03:30]} c4 {[%emt 0:01:30]} 20. Bc2 {[%emt 0:00:30]} b5 {[%emt 0:00:00]} 21. Nf3 {[%emt 0:06:30]} Qe7 {[%emt 0:03:00]} 22. Ne5 {[%emt 0:00:00]} Qd8 {[%emt 0:00:00]} 23. Nf3 {[%emt 0:00:00]} Qe7 {[%emt 0:00:00]} 24. Ne5 {[%emt 0:00:00]} Qd8 {[%emt 0:00:30]} 25. Nf3 {[%emt 0:00:00]} Rc8 {[%emt 0:00:30]} 26. Ra2 {[%emt 0:00:30]} Ra8 {[%emt 0:00:00]} 27. Ra3 {[%emt 0:00:30]} Rc8 {[%emt 0:00:00]} 28. Raa1 {[%emt 0:00:00]} Ra8 {[%emt 0:00:00]} 29. Re1 {[%emt 0:00:00]} Qe7 {[%emt 0:00:00]} 30. Kh1 {[%emt 0:00:00]} Nf8 {[%emt 0:00:00]} 31. Kg1 {[%emt 0:00:00]} 1/2-1/2

[Event "Turkish Youth Championship 2024"]
[Site "Samsun"]
[Date "2024.05.19"]
[Round "3"]
[White "Uslu, Tarik"]
[Black "Bulut, Kemal"]
[Result "1/2-1/2"]
[ECO "B76"]
[WhiteElo "1483"]
[BlackElo "1848"]
[Annotator "NA"]
[PlyCount "129"]
[EventDate "2024.05.18"]
[EventType "swiss"]
[EventCountry "TUR"]
[SourceTitle "playchess.com"]
[Source "ChessBase"]
[SourceQuality "1"]
[TimeControl "5400+30"]

1. e4 {[%emt 0:01:00]} c5 {[%emt 0:04:00]} 2. Nf3 {[%emt 0:00:00]} d6 {[%emt 0:00:30]} 3. d4 {[%emt 0:00:00]} cxd4 {[%emt 0:00:30]} 4. Nxd4 {[%emt 0:00:30]} Nf6 {[%emt 0:00:00]} 5. Nc3 {[%emt 0:00:00]} g6 {[%emt 0:01:00]} 6. Be3 {[%emt 0:00:00]} Bg7 {[%emt 0:02:30]} 7. f3 {[%emt 0:01:30]} Nc6 {[%emt 0:00:30]} 8. Qd2 {[%emt 0:00:00]} O-O {[%emt 0:00:30]} 9. O-O-O {[%emt 0:00:00]} d5 {[%emt 0:00:00]} 10. exd5 {[%emt 0:02:30]} Nxd5 {[%emt 0:00:00]} 11. Nxc6 {[%emt 0:06:30]} bxc6 {[%emt 0:00:00]} 12. Nxd5 {[%emt 0:00:30]} cxd5 {[%emt 0:00:00]} 13. Qxd5 {[%emt 0:00:30]} Qc7 {[%emt 0:00:30]} 14. Qc5 {[%emt 0:00:30]} Qb7 {[%emt 0:00:30]} 15. Bd4 {[%emt 0:02:30]} Bf5 {[%emt 0:01:30]} 16. c3 {[%emt 0:08:30]} Rfc8 {[%emt 0:00:30]} 17. Qb5 {[%emt 0:03:30]} Bh6+ {[%emt 0:00:30]} 18. Rd2 {[%emt 0:00:30]} Bxd2+ {[%emt 0:00:30]} 19. Kxd2 {[%emt 0:00:00]} Qxb5 {[%emt 0:00:00]} 20. Bxb5 {[%emt 0:00:00]} Rcb8 {[%emt 0:00:00]} 21. c4 {[%emt 0:00:30]} a6 {[%emt 0:00:00]} 22. Bc6 {[%emt 0:01:30]} Rd8 {[%emt 0:00:00]} 23. Bxa8 {[%emt 0:01:30]} Rxd4+ {[%emt 0:00:30]} 24. Kc3 {[%emt 0:07:30]} e5 {[%emt 0:05:30]} 25. g4 {[%emt 0:15:30]} Be6 {[%emt 0:00:30]} 26. b3 {[%emt 0:00:00]} Kf8 {[%emt 0:05:30]} 27. Kb4 {[%emt 0:03:00]} Ke7 {[%emt 0:00:30]} 28. Bb7 {[%emt 0:01:30]} h5 {[%emt 0:02:30]} 29. h3 {[%emt 0:03:30]} hxg4 {[%emt 0:03:30]} 30. hxg4 {[%emt 0:00:30]} Rd3 {[%emt 0:00:30]} 31. Rf1 {[%emt 0:01:30]} Rd6 {[%emt 0:02:30]} 32. Ka5 {[%emt 0:02:30]} Rd2 {[%emt 0:00:30]} 33. a3 {[%emt 0:01:30]} Rb2 {[%emt 0:00:30]} 34. Ka4 {[%emt 0:00:30]} Bxc4 {[%emt 0:05:30]} 35. bxc4 {[%emt 0:05:30]} Rxb7 {[%emt 0:00:30]} 36. Ka5 {[%emt 0:00:00]} Rb3 {[%emt 0:00:30]} 37. a4 {[%emt 0:00:00]} Kd6 {[%emt 0:02:30]} 38. Kxa6 {[%emt 0:03:30]} Rb4 {[%emt 0:00:30]} 39. Rd1+ {[%emt 0:03:30]} Kc6 {[%emt 0:00:30]} 40. a5 {[%emt 0:00:30]} Rb3 {[%emt 0:02:30]} 41. Rd5 {[%emt 0:11:51]} f6 {[%emt 0:00:30]} 42. g5 {[%emt 0:00:33]} Rxf3 {[%emt 0:11:30]} 43. gxf6 {[%emt 0:00:12]} Rxf6 {[%emt 0:00:30]} 44. Rxe5 {[%emt 0:00:11]} Kc7+ {[%emt 0:00:30]} 45. Kb5 {[%emt 0:06:07]} Rf1 {[%emt 0:03:30]} 46. Kc5 {[%emt 0:01:40]} Ra1 {[%emt 0:01:30]} 47. Kb5 {[%emt 0:01:46]} Rb1+ {[%emt 0:00:30]} 48. Kc5 {[%emt 0:00:00]} Ra1 {[%emt 0:00:30]} 49. Kb4 {[%emt 0:00:09]} Rb1+ {[%emt 0:00:00]} 50. Ka3 {[%emt 0:01:13]} Rc1 {[%emt 0:01:00]} 51. Kb3 {[%emt 0:00:59]} Rb1+ {[%emt 0:00:00]} 52. Kc2 {[%emt 0:00:00]} Rb8 {[%emt 0:00:00]} 53. Rg5 {[%emt 0:00:00]} Rb4 {[%emt 0:01:30]} 54. Kc3 {[%emt 0:00:10]} Ra4 {[%emt 0:00:30]} 55. Kb3 {[%emt 0:00:10]} Ra1 {[%emt 0:00:00]} 56. Rxg6 {[%emt 0:01:40]} Rxa5 {[%emt 0:00:00]} 57. Kb4 {[%emt 0:00:08]} Ra1 {[%emt 0:00:00]} 58. Kb5 {[%emt 0:00:00]} Rf1 {[%emt 0:01:00]} 59. Rg7+ {[%emt 0:00:26]} Kc8 {[%emt 0:01:30]} 60. c5 {[%emt 0:00:51]} Rf6 {[%emt 0:00:00]} 61. c6 {[%emt 0:00:49]} Rf1 {[%emt 0:00:00]} 62. Rg4 {[%emt 0:01:37]} Rb1+ {[%emt 0:00:30]} 63. Kc5 {[%emt 0:00:17]} Rc1+ {[%emt 0:00:30]} 64. Rc4 {[%emt 0:01:44]} Rxc4+ {[%emt 0:00:00]} 65. Kxc4 {[%emt 0:00:04]} 1/2-1/2